bitfinex-derivatives/quotes_BTCF0:USTF0_20210111
["timestamp","ask_amount","ask_price","bid_price","bid_amount"]
[1610394038188,0.13632608,31741.0,31740.0,4.90406424]
[1610394038385,1.21499175,31770.0,31740.0,4.90406424]
[1610394038386,0.10446,31758.0,31740.0,4.90406424]
[1610394040085,0.10446,31758.0,31746.0,0.13632608]
[1610394040286,0.19596,31770.0,31746.0,0.13632608]
[1610394040886,0.19596,31770.0,31746.0,0.22957608]
[1610394041488,0.03564067,31769.0,31747.0,0.0951]
[1610394041687,0.19596,31770.0,31746.0,0.22957608]
[1610394042087,0.13632608,31747.0,31746.0,0.22957608]
[1610394043789,0.13632608,31747.0,31746.0,0.92227608]
[1610394043992,0.03632608,31763.0,31746.0,0.92227608]
[1610394044190,0.27279,31781.0,31746.0,0.22957608]
[1610394044390,0.93397575,31784.0,31755.0,5.101]
[1610394044590,0.93395927,31788.0,31755.0,5.20503]
[1610394044989,0.93383019,31793.0,31755.0,5.20503]
[1610394045389,0.93397489,31796.0,31755.0,0.10403]
[1610394045593,0.93397489,31796.0,31768.0,3.9522]
[1610394045791,1.52753985,31801.0,31768.0,4.0246]
[1610394045989,1.52753985,31801.0,31791.0,0.13632608]
[1610394046190,0.93379575,31802.0,31791.0,0.13632608]
[1610394046590,0.93393143,31805.0,31791.0,0.13632608]
[1610394046990,0.93382969,31806.0,31784.0,3.6451]
[1610394047791,0.93396354,31807.0,31784.0,3.6451]
[1610394047990,0.93396354,31807.0,31786.0,0.13632608]
[1610394048193,0.93396354,31807.0,31784.0,3.6451]
[1610394048392,1.01641354,31807.0,31784.0,3.6451]
[1610394048693,0.08245,31807.0,31784.0,3.6451]
[1610394049091,1.01672681,31807.0,31784.0,3.6451]
[1610394050091,0.0933,31806.0,31786.0,0.13632608]
[1610394051293,0.0933,31806.0,31787.0,3.9464]
[1610394051694,1.01672681,31807.0,31787.0,3.9464]
[1610394052096,0.08245,31807.0,31798.0,0.13632608]
[1610394052295,0.08245,31807.0,31787.0,3.9464]
[1610394052697,0.17695,31807.0,31787.0,3.9464]
[1610394053200,0.08245,31807.0,31787.0,3.9464]
[1610394053601,0.93669001,31809.0,31787.0,3.9464]
[1610394053900,0.93713474,31814.0,31787.0,3.9464]
[1610394054099,1.07346082,31814.0,31813.0,0.13632608]
[1610394054700,4.64633419,31814.0,31811.0,3.6617]
[1610394055100,3.13633256,31814.0,31811.0,3.56588759]
[1610394055301,3.00031286,31812.0,31811.0,3.56588759]
[1610394055500,3.00031286,31812.0,31798.0,0.08972]
[1610394055702,2.06276196,31812.0,31798.0,0.08972]
[1610394056100,0.56264267,31807.0,31798.0,0.08972]
[1610394056501,0.56257624,31808.0,31798.0,0.08972]
[1610394056901,0.56251816,31809.0,31798.0,0.08972]
[1610394057304,0.56249409,31812.0,31798.0,0.08972]
[1610394057700,0.67495543,31814.0,31798.0,0.08972]
[1610394057701,0.5623475,31814.0,31798.0,0.08972]
[1610394058102,0.5623487,31813.0,31802.0,4.9629]
[1610394058501,0.56216165,31814.0,31802.0,4.9629]
[1610394058902,0.5622513,31815.0,31813.0,0.13632608]
[1610394059502,0.5622513,31815.0,31814.0,0.5974]
[1610394059701,0.56210171,31816.0,31814.0,0.5974]
[1610394059904,0.56210171,31816.0,31813.0,0.13632608]
[1610394060104,0.5619947,31818.0,31813.0,0.13632608]
[1610394060504,0.93653299,31825.0,31817.0,4.9241]
[1610394060505,0.56194267,31823.0,31817.0,4.9241]
[1610394060707,0.56194267,31823.0,31822.0,0.13632608]
[1610394060906,0.08562,31830.0,31822.0,0.13632608]
[1610394060907,0.56159288,31828.0,31822.0,0.13632608]
[1610394061505,0.64717434,31830.0,31822.0,0.13632608]
[1610394061705,0.56155434,31830.0,31822.0,0.13632608]
[1610394061905,0.56121591,31831.0,31822.0,0.13632608]
[1610394062106,0.56121591,31831.0,31830.0,4.2472]
[1610394062306,0.56120498,31832.0,31830.0,4.2472]
[1610394062708,0.56079981,31835.0,31831.0,0.13632608]
[1610394063308,0.82236678,31840.0,31831.0,0.13632608]
[1610394063309,0.56075527,31838.0,31831.0,0.13632608]
[1610394063909,0.56029315,31840.0,31831.0,0.13632608]
[1610394064310,0.43148288,31840.0,31831.0,0.13632608]
[1610394064510,0.43148288,31840.0,31830.0,4.24528538]
[1610394064712,0.67166719,31844.0,31830.0,4.24528538]
[1610394065011,0.671685,31843.0,31830.0,4.24528538]
[1610394065411,0.67113466,31845.0,31830.0,4.24528538]
[1610394065812,0.07431,31846.0,31830.0,4.24528538]
[1610394065813,0.7454337,31846.0,31830.0,4.24528538]
[1610394066213,0.7454337,31846.0,31822.0,0.08479]
[1610394066214,0.07431,31846.0,31822.0,0.08479]
[1610394066613,0.43866422,31850.0,31849.0,3.7227]
[1610394066814,0.55589267,31852.0,31849.0,3.7227]
[1610394067017,0.9307892,31871.0,31849.0,3.7227]
[1610394067216,0.9307892,31871.0,31851.0,0.13632608]
[1610394067416,0.13632608,31886.0,31851.0,0.13632608]
[1610394067417,0.92923564,31878.0,31865.0,3.819]
[1610394067817,1.0,31976.0,31865.0,3.819]
[1610394067818,0.92908565,31880.0,31865.0,3.819]
[1610394068218,0.92883375,31882.0,31865.0,3.819]
[1610394068621,0.68841612,31888.0,31865.0,3.819]
[1610394069020,1.61525635,31897.0,31865.0,3.91789]
[1610394069418,0.4588428,31898.0,31896.0,0.13632608]
[1610394069821,0.13632608,31901.0,31896.0,0.13632608]
[1610394070018,0.13632608,31901.0,31897.0,4.1962]
[1610394070418,0.92435155,31906.0,31896.0,0.13632608]
[1610394070619,0.2766,31908.0,31903.0,4.3872]
[1610394070819,0.921954,31918.0,31903.0,4.3872]
[1610394071119,0.9218975,31919.0,31903.0,4.3872]
[1610394071322,0.9218975,31919.0,31918.0,0.13632608]
[1610394071518,1.6223995,31932.0,31918.0,0.13632608]
[1610394071519,0.91963257,31923.0,31918.0,0.13632608]
[1610394071919,1.02996641,31928.0,31903.0,4.3872]
[1610394071920,0.11466365,31919.0,31903.0,4.3872]
[1610394072119,0.21909365,31919.0,31903.0,4.3872]
[1610394072321,0.10443,31919.0,31903.0,4.3872]
[1610394072520,0.10443,31919.0,31887.0,0.09369]
[1610394072720,0.10443,31919.0,31918.0,5.16948959]
[1610394073121,0.68771265,31938.0,31918.0,5.16948959]
[1610394073319,0.91445932,31951.0,31901.0,0.08869]
[1610394073522,0.91445932,31951.0,31928.0,4.6145]
[1610394073720,0.2903,31959.0,31950.0,0.13632608]
[1610394073922,0.91388268,31960.0,31950.0,0.13632608]
[1610394074123,0.91382577,31965.0,31952.0,4.5075]
[1610394074521,0.68691522,31972.0,31952.0,4.5075]
[1610394074920,0.91057018,31973.0,31952.0,4.5075]
[1610394075321,0.91057018,31973.0,31926.0,0.09851]
[1610394075521,0.08808,31973.0,31926.0,0.09851]
[1610394075722,0.08808,31973.0,31952.0,4.3158]
[1610394076120,0.08808,31973.0,31926.0,0.09851]
[1610394076321,0.08808,31973.0,31941.0,3.6059]
[1610394077522,0.15789273,31982.0,31919.0,0.07541]
[1610394077724,0.15789273,31982.0,31950.0,4.262]
[1610394078127,0.15789273,31982.0,31967.0,0.13632608]
[1610394078722,0.90022714,32002.0,31969.0,4.6855]
[1610394078924,0.90022098,32004.0,31969.0,4.54917392]
[1610394079525,1.0,32000.0,31969.0,4.54917392]
[1610394079723,1.08768,32000.0,31969.0,4.54917392]
[1610394079928,0.83768,32000.0,31969.0,4.54917392]
[1610394080124,0.08768,32000.0,31969.0,4.54917392]
[1610394080724,0.08768,32000.0,31976.0,0.13632608]
[1610394081324,0.08768,32000.0,31976.0,0.04099239]
[1610394081930,0.08768,32000.0,31969.0,4.54917392]
[1610394082626,0.08768,32000.0,31974.0,0.13632608]
[1610394082826,0.08768,32000.0,31964.0,0.09332]
[1610394083227,0.0951,31999.0,31957.0,0.0907]
[1610394083426,0.0925,31998.0,31953.0,4.3682]
[1610394083627,0.0925,31998.0,31952.0,0.34100858]
[1610394084029,4.456,31994.0,31952.0,0.34100858]
[1610394084628,4.456,31994.0,31953.0,0.6589]
[1610394085230,0.13632608,31962.0,31956.0,0.13632608]
[1610394086229,0.07155,31966.0,31956.0,0.13632608]
[1610394086832,0.07155,31966.0,31952.0,0.34100858]
[1610394087431,0.13632608,31953.0,31952.0,0.34100858]
[1610394088233,0.13632608,31953.0,31952.0,1.34100858]
[1610394088833,0.08036,31956.0,31952.0,1.34100858]
[1610394089435,0.13632608,31953.0,31952.0,1.34100858]
[1610394089633,0.08036,31956.0,31952.0,1.34100858]
[1610394090234,0.08036,31956.0,31952.0,0.34100858]
[1610394091434,0.13632608,31953.0,31952.0,0.47733466]
[1610394091636,0.13632608,31953.0,31952.0,0.34100858]
[1610394092240,0.08036,31956.0,31952.0,1.34100858]
[1610394092636,0.07155,31966.0,31952.0,1.34100858]
[1610394092837,1.0,31994.0,31952.0,1.34100858]
[1610394093237,0.0934,31993.0,31952.0,1.34100858]
[1610394093437,0.0934,31993.0,31966.0,0.13632608]
[1610394093837,4.5368,31993.0,31952.0,1.34100858]
[1610394094037,4.32751711,31993.0,31952.0,1.34100858]
[1610394094237,4.32751711,31993.0,31986.0,1.0]
[1610394095038,4.32751711,31993.0,31986.0,0.90471067]
[1610394095039,0.08243,31993.0,31986.0,0.90471067]
[1610394095437,0.13632608,31987.0,31982.0,1.0]
[1610394095836,0.13632608,31987.0,31982.0,0.99809421]
[1610394096038,0.13632608,31987.0,31968.0,0.13632608]
[1610394096540,0.0947,31986.0,31968.0,0.13632608]
[1610394096752,0.87533,31986.0,31962.0,3.6061]
[1610394097441,0.13632608,31963.0,31962.0,3.74242608]
[1610394097640,0.21199608,31963.0,31962.0,3.74242608]
[1610394097840,0.07567,31963.0,31962.0,3.74242608]
[1610394098240,0.08046,31972.0,31952.0,0.34100858]
[1610394098439,0.08046,31972.0,31957.0,3.5481]
[1610394099040,0.10003,31986.0,31957.0,3.5481]
[1610394099440,0.10003,31986.0,31985.0,0.13632608]
[1610394099642,0.10003,31986.0,31968.0,0.07875]
[1610394100043,0.10003,31986.0,31985.0,6.0]
[1610394101241,0.08243,31993.0,31985.0,6.0]
[1610394101442,0.13632608,31993.0,31992.0,0.13632608]
[1610394101642,0.2721,32024.0,31992.0,0.13632608]
[1610394102245,0.2721,32024.0,31978.0,3.9034]
[1610394102442,0.36457,32024.0,31978.0,3.9034]
[1610394103444,0.13632608,31979.0,31978.0,3.9034]
[1610394103643,0.13632608,31979.0,31961.0,1.0]
[1610394104043,0.13632608,31979.0,31952.0,0.34100858]
[1610394104443,0.07449,31983.0,31952.0,0.34100858]
[1610394105843,0.07449,31983.0,31952.0,0.40952858]
[1610394106043,0.07449,31983.0,31982.0,1.0]
[1610394106244,0.21081608,31983.0,31982.0,1.0]
[1610394106646,0.07449,31983.0,31982.0,1.0]
[1610394108145,0.07449,31983.0,31961.0,0.11316]
[1610394108350,0.07449,31983.0,31974.0,0.13632608]
[1610394108646,0.06949,31990.0,31974.0,0.13632608]
[1610394108847,5.2313,31995.0,31974.0,0.13632608]
[1610394109049,0.78254296,32046.0,31974.0,0.13632608]
[1610394109246,5.1579,32027.0,31974.0,0.13632608]
[1610394110248,5.1579,32027.0,31968.0,5.30463]
[1610394110648,5.1579,32027.0,32000.0,0.13632608]
[1610394110847,0.0941,32027.0,31968.0,0.10573]
[1610394111049,0.0941,32027.0,31981.0,0.08659]
[1610394111452,0.0948,32029.0,31981.0,0.08659]
[1610394111651,0.0943,32047.0,31985.0,4.8741]
[1610394112652,0.13632608,32010.0,32008.0,0.13632608]
[1610394113051,0.07057,32015.0,31985.0,4.8741]
[1610394113651,0.07057,32015.0,31981.0,0.08659]
[1610394115652,0.07057,32015.0,32000.0,0.13632608]
[1610394116053,0.07057,32015.0,31991.0,0.08657]
[1610394116252,0.07057,32015.0,31981.0,0.08659]
[1610394116458,0.07057,32015.0,31961.0,0.11316]
[1610394116459,4.5764,32004.0,31961.0,0.11316]
[1610394116655,0.10387,32004.0,31961.0,0.11316]
[1610394116852,4.9207,31987.0,31961.0,0.11316]
[1610394117054,4.99294,31987.0,31942.0,4.072]
[1610394117657,4.99294,31987.0,31966.0,0.13632608]
[1610394118054,5.99294,31987.0,31971.0,1.0]
[1610394119357,1.07224,31987.0,31971.0,1.0]
[1610394119558,5.24544,31987.0,31971.0,1.0]
[1610394119757,0.13632608,31972.0,31971.0,1.0]
[1610394120159,0.13632608,31972.0,31949.0,0.08353]
[1610394121659,0.08083,31973.0,31970.0,0.13632608]
[1610394121858,0.08083,31973.0,31949.0,0.08353]
[1610394121859,0.08083,31973.0,31958.0,0.08544]
[1610394122059,0.08083,31973.0,31972.0,1.0]
[1610394122862,3.98625115,31976.0,31972.0,1.0]
[1610394123662,0.13632608,31984.0,31975.0,0.13632608]
[1610394123863,0.07224,31987.0,31975.0,0.13632608]
[1610394124065,0.10387,32004.0,31975.0,0.66346]
[1610394124264,0.07057,32015.0,31975.0,0.10526]
[1610394124465,0.80389339,32027.0,31979.0,4.9251]
[1610394124665,0.80389339,32027.0,31975.0,0.10526]
[1610394124865,0.09968,32027.0,31996.0,3.8893]
[1610394125065,0.09968,32027.0,31996.0,3.96065]
[1610394125667,0.09968,32027.0,32026.0,0.13632608]
[1610394125869,0.80738931,32042.0,32026.0,0.13632608]
[1610394126067,0.80738931,32042.0,32026.0,10.00872608]
[1610394126267,0.2903,32045.0,32026.0,10.00872608]
[1610394126868,0.2903,32045.0,32026.0,10.00682321]
[1610394127668,0.13632608,32027.0,32026.0,10.00682321]
[1610394128070,0.13632608,32027.0,32026.0,5.00682321]
[1610394128271,0.07519,32040.0,32026.0,5.00682321]
[1610394129072,0.81208557,32050.0,32026.0,5.00682321]
[1610394129271,0.66764007,32050.0,32026.0,5.00682321]
[1610394129473,0.9220352,32057.0,32026.0,5.00682321]
[1610394129674,0.9220352,32057.0,32042.0,0.13632608]
[1610394129873,0.92376536,32055.0,32042.0,0.13632608]
[1610394130073,1.03104536,32055.0,32042.0,0.13632608]
[1610394130273,0.10728,32055.0,32042.0,0.13632608]
[1610394130873,0.10728,32055.0,32042.0,4.12582608]
[1610394131074,0.10728,32055.0,32042.0,0.13632608]
[1610394131676,0.10728,32055.0,32050.0,0.13632608]
[1610394133578,0.10728,32055.0,32050.0,0.81252608]
[1610394133778,0.10728,32055.0,32054.0,0.13632608]
[1610394133978,1.06157861,32075.0,32054.0,4.61152608]
[1610394134179,0.92522629,32079.0,32054.0,4.61152608]
[1610394134580,0.9240618,32084.0,32054.0,4.61152608]
[1610394134779,0.92391799,32089.0,32054.0,4.61152608]
[1610394135380,0.9238056,32091.0,32054.0,4.61152608]
[1610394135781,0.92250234,32099.0,32090.0,0.13632608]
[1610394136181,0.92253411,32100.0,32081.0,4.5896]
[1610394136380,1.30981607,32105.0,32081.0,4.5896]
[1610394136381,0.92117942,32101.0,32081.0,4.5896]
[1610394136780,0.92118436,32103.0,32081.0,4.5896]
[1610394137183,0.92109974,32107.0,32081.0,4.5896]
[1610394137582,0.919487,32117.0,32077.0,0.08443]
[1610394137781,0.13632608,32114.0,32097.0,0.13632608]
[1610394137982,0.07211,32115.0,32088.0,5.1167]
[1610394138184,0.07211,32115.0,32105.0,5.0]
[1610394138782,0.07211,32115.0,32105.0,4.99810165]
[1610394139183,0.07211,32115.0,32088.0,5.22957]
[1610394139786,0.80272284,32129.0,32088.0,5.22957]
[1610394139984,0.6533,32127.0,32088.0,5.22957]
[1610394140185,0.82897,32127.0,32088.0,5.22957]
[1610394140584,0.17567,32127.0,32088.0,0.11287]
[1610394140787,4.5042,32117.0,32088.0,0.11287]
[1610394141185,4.61804,32117.0,32088.0,0.11287]
[1610394141585,4.61804,32117.0,32077.0,0.08443]
[1610394141985,4.61804,32117.0,32070.0,0.08477]
[1610394142185,4.61804,32117.0,32071.0,0.13632608]
[1610394142385,4.61804,32117.0,32071.0,0.24268608]
[1610394142587,4.61804,32117.0,32071.0,0.10636]
[1610394143186,4.61804,32117.0,32116.0,1.0]
[1610394143586,3.9105,32117.0,32116.0,1.0]
[1610394143785,0.07292661,32127.0,32116.0,0.8941]
[1610394144187,0.13632608,32117.0,32087.0,0.09979]
[1610394144389,0.23058608,32117.0,32087.0,0.09979]
[1610394144590,0.09426,32117.0,32087.0,0.09979]
[1610394145387,4.86022661,32127.0,32087.0,0.09979]
[1610394145788,0.07292661,32127.0,32087.0,0.09979]
[1610394145990,5.0023,32118.0,32087.0,0.09979]
[1610394146189,1.0,32113.0,32096.0,1.0]
[1610394146589,1.0,32113.0,32102.0,0.13632608]
[1610394146590,0.13632608,32109.0,32102.0,0.13632608]
[1610394146790,0.13632608,32109.0,32096.0,1.0]
[1610394147391,1.0,32113.0,32096.0,1.0]
[1610394147591,1.0,32113.0,32096.0,1.07288]
[1610394148090,0.06948,32118.0,32096.0,1.07288]
[1610394148091,0.06948,32118.0,32096.0,0.07288]
[1610394148290,3.9963,32134.0,32096.0,0.07288]
[1610394148690,0.13632608,32097.0,32096.0,0.07288]
[1610394149291,0.13632608,32097.0,32087.0,0.09979]
[1610394149491,0.13632608,32097.0,32070.0,4.6068]
[1610394149692,0.10802,32106.0,32068.0,1.0]
[1610394149891,5.1322,32105.0,32068.0,1.08907]
[1610394150091,5.1322,32105.0,32068.0,0.08907]
[1610394150692,5.1322,32105.0,32087.0,0.42261747]
[1610394152604,0.13632608,32088.0,32087.0,0.42261747]
[1610394153000,5.1322,32105.0,32087.0,0.42261747]
[1610394153404,0.07368,32115.0,32087.0,0.53238747]
[1610394153902,0.2994,32139.0,32087.0,0.53238747]
[1610394154702,0.2994,32139.0,32106.0,0.13632608]
[1610394154903,0.2994,32139.0,32106.0,0.23342608]
[1610394155710,0.2994,32139.0,32106.0,0.0971]
[1610394156505,0.2994,32139.0,32099.0,0.09414]
[1610394156702,0.13632608,32100.0,32099.0,0.09414]
[1610394157503,0.06998207,32117.0,32099.0,0.09414]
[1610394158106,0.06998207,32117.0,32105.0,1.0]
[1610394158605,0.13632608,32106.0,32105.0,1.0]
[1610394159109,1.0,32121.0,32105.0,1.0]
[1610394160107,0.08536,32127.0,32099.0,0.09414]
[1610394160609,0.13632608,32100.0,32099.0,0.09414]
[1610394160908,0.01827641,32127.0,32099.0,0.09414]
[1610394161509,0.01827641,32127.0,32091.0,0.13632608]
[1610394161909,0.01827641,32127.0,32087.0,0.53238747]
[1610394162109,1.0,32106.0,32090.0,1.0]
[1610394162310,1.06982,32106.0,32090.0,1.0]
[1610394162711,0.13632608,32091.0,32090.0,1.0]
[1610394163510,0.08489,32099.0,32090.0,1.0]
[1610394163911,1.06982,32106.0,32090.0,1.0]
[1610394164111,0.06982,32106.0,32089.0,0.10193]
[1610394164313,0.00191869,32117.0,32089.0,0.10193]
[1610394165511,0.00191869,32117.0,32089.0,0.09693]
[1610394165710,0.19426139,32138.0,32089.0,0.09693]
[1610394166715,0.19426139,32138.0,32093.0,0.13632608]
[1610394168315,0.5881,32137.0,32093.0,0.13632608]
[1610394168516,0.65662,32137.0,32089.0,0.09693]
[1610394168714,0.65662,32137.0,32087.0,0.42261747]
[1610394168915,0.65662,32137.0,32098.0,0.13632608]
[1610394170117,0.65662,32137.0,32090.0,0.07469]
[1610394171016,0.13632608,32091.0,32090.0,0.07469]
[1610394171817,0.09621,32109.0,32090.0,0.07469]
[1610394172016,0.09621,32109.0,32087.0,0.42261747]
[1610394172216,0.09621,32109.0,32090.0,1.0]
[1610394173620,0.13632608,32101.0,32090.0,1.0]
[1610394174221,0.13632608,32101.0,32088.0,0.10985]
[1610394174222,0.13632608,32101.0,32099.0,1.0]
[1610394175423,0.09621,32109.0,32099.0,1.0]
[1610394175825,0.13632608,32100.0,32099.0,1.0]
[1610394176225,0.13632608,32100.0,32096.0,1.0]
[1610394177629,0.22318608,32100.0,32096.0,1.0]
[1610394177828,0.08686,32100.0,32096.0,1.0]
[1610394178228,0.08686,32100.0,32087.0,0.42261747]
[1610394178428,0.13632608,32088.0,32087.0,0.42261747]
[1610394179631,0.06975,32090.0,32087.0,0.42261747]
[1610394180432,0.08686,32100.0,32087.0,0.42261747]
[1610394180633,0.0956327,32100.0,32087.0,0.42261747]
[1610394181538,0.0018327,32100.0,32087.0,0.42261747]
[1610394182344,0.09621,32109.0,32088.0,0.13632608]
[1610394182741,0.81067382,32119.0,32088.0,0.13632608]
[1610394182944,0.81067505,32118.0,32088.0,0.13632608]
[1610394183745,1.09489951,32115.0,32088.0,0.13632608]
[1610394184135,0.2819,32115.0,32102.0,1.0]
[1610394184535,0.13632608,32103.0,32102.0,1.0]
[1610394184734,0.36777,32115.0,32102.0,1.0]
[1610394185136,0.36777,32115.0,32102.0,1.09841]
[1610394185339,0.08587,32115.0,32102.0,1.09841]
[1610394185738,1.0,32118.0,32102.0,1.09841]
[1610394186137,1.0,32119.0,32103.0,1.0]
[1610394186438,0.13632608,32104.0,32103.0,1.13632608]
[1610394186637,1.0,32119.0,32103.0,1.13632608]
[1610394186836,1.0,32119.0,32103.0,1.0]
[1610394188241,0.93060074,32121.0,32102.0,0.09841]
[1610394188439,0.93217778,32120.0,32104.0,0.13632608]
[1610394188641,0.93217778,32120.0,32102.0,0.09841]
[1610394188842,1.04401675,32124.0,32102.0,0.09841]
[1610394188843,0.93216678,32119.0,32102.0,0.09841]
[1610394189243,0.93225988,32117.0,32102.0,0.09841]
[1610394189543,0.93390304,32114.0,32102.0,0.09841]
[1610394189941,0.93396828,32112.0,32102.0,0.09841]
[1610394190142,1.04111828,32112.0,32103.0,1.0]
[1610394190345,0.93552763,32110.0,32103.0,1.0]
[1610394190541,0.13632608,32104.0,32103.0,1.13632608]
[1610394191142,0.93551205,32111.0,32103.0,1.13632608]
[1610394191342,1.0,32119.0,32103.0,1.0]
[1610394191343,0.93548476,32113.0,32103.0,1.0]
[1610394191743,0.93713938,32111.0,32103.0,1.0]
[1610394192143,0.93712396,32110.0,32103.0,1.0]
[1610394192345,0.93712396,32110.0,32096.0,0.11376]
[1610394192544,0.93854102,32111.0,32096.0,0.11376]
[1610394192745,0.13632608,32109.0,32108.0,0.13632608]
[1610394194146,0.93849574,32112.0,32108.0,1.13632608]
[1610394194745,0.13632608,32111.0,32108.0,1.13632608]
[1610394196149,0.13632608,32111.0,32110.0,1.0]
[1610394198053,0.79062974,32112.0,32110.0,1.0]
[1610394198453,0.79062974,32112.0,32111.0,0.01]
[1610394198653,0.13632608,32112.0,32111.0,0.01]
[1610394200054,1.05487507,32118.0,32111.0,0.02]
[1610394200254,1.05486647,32117.0,32111.0,0.02]
[1610394200556,1.05479856,32116.0,32111.0,0.02]
[1610394200753,0.13632608,32112.0,32111.0,0.02]
[1610394201455,1.05502835,32117.0,32111.0,0.02]
[1610394201856,1.05507712,32112.0,32111.0,0.02]
[1610394202155,2.05507712,32112.0,32111.0,0.02]
[1610394202455,2.13797712,32112.0,32111.0,0.02]
[1610394202656,2.13797712,32112.0,32111.0,0.01810242]
[1610394202855,2.1814032,32112.0,32111.0,0.01810242]
[1610394203458,2.04507712,32112.0,32111.0,0.01810242]
[1610394203860,2.01507712,32112.0,32111.0,0.01810242]
[1610394204262,1.01507712,32112.0,32111.0,0.01810242]
[1610394204460,0.99757712,32112.0,32111.0,0.01810242]
[1610394204662,1.05525528,32114.0,32111.0,0.01810242]
[1610394204861,0.13632608,32112.0,32111.0,0.01810242]
[1610394205865,1.19149916,32112.0,32111.0,0.01810242]
[1610394207177,0.13632608,32112.0,32111.0,0.01810242]
[1610394208768,0.13632608,32112.0,32111.0,0.1544285]
[1610394208967,1.67244245,32120.0,32111.0,0.1544285]
[1610394209169,1.31859675,32124.0,32111.0,0.1544285]
[1610394209569,1.0,32126.0,32111.0,0.1544285]
[1610394209570,0.17072045,32122.0,32111.0,0.1544285]
[1610394209770,0.0932,32123.0,32111.0,0.1544285]
[1610394210973,0.13632608,32112.0,32111.0,0.1544285]
[1610394211173,0.23102608,32112.0,32111.0,0.1544285]
[1610394211374,0.23102608,32112.0,32111.0,0.1298285]
[1610394211573,0.13632608,32112.0,32111.0,0.1298285]
[1610394211974,0.13632608,32112.0,32111.0,0.0552285]
[1610394212176,0.13632608,32112.0,32111.0,1.0552285]
[1610394212975,0.13632608,32112.0,32111.0,1.0]
[1610394213776,0.13632608,32112.0,32111.0,0.9895]
[1610394214179,1.13632608,32112.0,32105.0,0.10687]
[1610394214379,0.0938,32111.0,32096.0,0.11376]
[1610394214579,0.0938,32111.0,32082.0,4.7042]
[1610394214979,1.13632608,32112.0,32091.0,0.13632608]
[1610394214980,0.5938,32112.0,32091.0,0.13632608]
[1610394215180,0.94151502,32113.0,32091.0,0.13632608]
[1610394215380,0.94151763,32110.0,32091.0,0.13632608]
[1610394215579,0.94151763,32110.0,32082.0,4.7042]
[1610394215780,0.94145971,32113.0,32082.0,4.7042]
[1610394216184,0.94141789,32114.0,32082.0,4.7042]
[1610394216581,0.94132252,32115.0,32079.0,0.10965]
[1610394216780,0.94132252,32115.0,32094.0,3.7759]
[1610394216982,0.94132252,32115.0,32112.0,0.13632608]
[1610394217181,0.94132252,32115.0,32114.0,5.0182]
[1610394217381,0.70623513,32124.0,32114.0,5.0182]
[1610394217782,2.37886903,32140.0,32114.0,5.0182]
[1610394218182,1.05336362,32139.0,32114.0,5.0182]
[1610394218583,1.05243991,32144.0,32114.0,5.0182]
[1610394218983,1.05243991,32144.0,32141.0,0.13632608]
[1610394219184,1.31551196,32148.0,32143.0,1.0]
[1610394219586,1.05162207,32146.0,32143.0,0.99810408]
[1610394219989,1.05162207,32146.0,32141.0,0.13632608]
[1610394219990,1.05162207,32146.0,32145.0,1.0]
[1610394220390,1.05154681,32147.0,32145.0,1.0]
[1610394220991,0.13632608,32146.0,32145.0,1.0]
[1610394221895,0.25887245,32149.0,32141.0,0.13632608]
[1610394222095,0.25887245,32149.0,32145.0,1.0]
[1610394222295,0.07998,32151.0,32145.0,1.0]
[1610394222898,0.07998,32151.0,32149.0,0.13632608]
[1610394223494,1.04818752,32156.0,32145.0,1.0]
[1610394223996,1.04818752,32156.0,32152.0,1.0]
[1610394224393,1.04806082,32161.0,32152.0,1.0]
[1610394224793,1.04711694,32162.0,32152.0,1.0]
[1610394224993,1.04711694,32162.0,32156.0,0.87602608]
[1610394225193,0.06968633,32164.0,32156.0,0.87602608]
[1610394225194,1.1167896,32164.0,32156.0,0.87602608]
[1610394225595,0.06968633,32164.0,32156.0,0.7397]
[1610394225994,0.06968633,32164.0,32163.0,1.0]
[1610394226995,0.20601241,32164.0,32163.0,1.13632608]
[1610394227796,0.06968633,32164.0,32163.0,1.13632608]
[1610394229997,0.06968633,32164.0,32163.0,6.13632608]
[1610394231901,0.06968633,32164.0,32163.0,0.13632608]
[1610394232502,0.0792,32198.0,32163.0,0.13632608]
[1610394232701,0.0792,32198.0,32180.0,5.1232]
[1610394232901,0.0792,32198.0,32180.0,5.21163]
[1610394233301,0.0792,32198.0,32197.0,0.13632608]
[1610394233501,0.13632608,32214.0,32197.0,0.83642608]
[1610394233701,0.13632608,32214.0,32197.0,0.13632608]
[1610394233902,0.13632608,32214.0,32201.0,3.6633]
[1610394234100,0.2804,32229.0,32201.0,3.6633]
[1610394234303,0.2877,32239.0,32201.0,3.6633]
[1610394234704,0.2877,32239.0,32198.0,0.10521]
[1610394234902,0.3947,32239.0,32212.0,4.2016]
[1610394235103,0.92152641,32233.0,32212.0,4.2016]
[1610394235303,0.92152641,32233.0,32211.0,0.09763]
[1610394235503,0.91961338,32236.0,32211.0,0.09763]
[1610394235703,0.13632608,32212.0,32185.0,0.13632608]
[1610394235903,0.23962608,32212.0,32174.0,3.5443]
[1610394236103,0.1033,32212.0,32174.0,3.5443]
[1610394236303,0.08097,32212.0,32174.0,3.5443]
[1610394236906,0.092,32211.0,32174.0,3.5443]
[1610394237605,0.092,32211.0,32179.0,0.13632608]
[1610394238005,0.092,32211.0,32174.0,3.5443]
[1610394238006,1.01030582,32211.0,32174.0,3.5443]
[1610394238506,0.76231,32212.0,32174.0,3.5443]
[1610394239107,0.08097,32212.0,32174.0,3.5443]
[1610394241708,4.34063587,32213.0,32211.0,0.13632608]
[1610394241908,0.91657831,32229.0,32184.0,0.08926]
[1610394242112,0.91657831,32229.0,32192.0,4.8692]
[1610394242813,1.59662678,32231.0,32192.0,4.8692]
[1610394243214,0.0934,32230.0,32192.0,4.8692]
[1610394243615,0.19743,32230.0,32202.0,0.13632608]
[1610394243814,0.19743,32230.0,32170.0,0.07449]
[1610394244016,5.1366,32218.0,32170.0,3.9749]
[1610394244215,0.0936,32217.0,32170.0,3.9749]
[1610394244416,0.0936,32217.0,32143.0,0.0933]
[1610394244618,3.6393,32201.0,32150.0,4.142]